bitfinex/quotes_ETHUSD_20250824
["timestamp","ask_amount","ask_price","bid_price","bid_amount"]
[1756076957534,1.33282202,4787.2,4787.1,0.044]
[1756076957930,1.9553322,4787.2,4787.1,0.044]
[1756076958664,5.16027078,4787.2,4787.1,0.044]
[1756076958865,4.04423594,4787.2,4787.1,0.044]
[1756076959067,5.96023594,4787.2,4787.1,0.044]
[1756076959234,0.66,4786.7,4786.6,0.004]
[1756076959436,13.529627,4786.7,4786.6,0.004]
[1756076959761,13.990927,4786.7,4786.6,0.004]
[1756076960165,10.406927,4786.7,4786.6,0.004]
[1756076960337,13.991927,4786.7,4786.6,0.004]
[1756076960732,15.49140453,4786.7,4786.6,0.004]
[1756076961067,7.00516558,4786.6,4786.2,0.08]
[1756076961245,9.05147479,4786.6,4786.2,0.08]
[1756076961448,22.02819413,4786.6,4786.2,0.08]
[1756076961641,23.90254104,4786.6,4786.2,0.08]
[1756076961844,5.74929653,4786.3,4786.2,0.08]
[1756076962045,0.66,4786.0,4785.6,0.004]
[1756076962246,7.22854621,4786.2,4785.6,0.004]
[1756076962247,3.06575847,4785.7,4785.6,0.004]
[1756076962448,8.42223598,4785.7,4785.6,0.004]
[1756076962748,8.88353598,4785.7,4785.6,0.004]
[1756076962945,9.61197675,4785.7,4785.6,0.004]
[1756076963135,11.10941828,4785.7,4785.6,0.004]
[1756076963336,13.0924984,4785.7,4785.6,0.004]
[1756076963569,13.19739649,4785.7,4785.6,0.004]
[1756076963871,7.8479718,4785.7,4785.6,0.004]
[1756076964072,13.19839649,4785.7,4785.6,0.004]
[1756076964546,13.52653126,4785.7,4785.6,0.004]
[1756076966836,2.74973314,4785.3,4785.2,0.04]
[1756076967040,10.43246119,4785.3,4785.2,0.04]
[1756076967242,12.38501945,4785.3,4785.2,0.04]
[1756076967540,10.89376119,4785.3,4785.2,0.04]
[1756076967740,7.30576119,4785.3,4785.2,0.04]
[1756076967945,10.89276119,4785.3,4785.2,0.04]
[1756076968651,3.77852805,4785.3,4785.2,0.04]
[1756076968858,0.55532202,4785.3,4785.2,0.04]
[1756076969044,4.80232202,4785.3,4785.2,0.04]
[1756076969469,4.95972572,4785.3,4785.2,0.04]
[1756076969675,8.54672572,4785.3,4785.2,0.04]
[1756076970353,10.20825516,4785.3,4785.2,0.04]
[1756076970554,10.66955516,4785.3,4785.2,0.04]
[1756076970753,9.32421161,4785.3,4785.2,0.04]
[1756076971362,8.57982202,4785.3,4785.2,0.04]
[1756076971862,9.83582202,4785.3,4785.2,0.04]
[1756076972061,5.78752202,4785.3,4785.2,0.04]
[1756076972261,2.47132202,4785.3,4785.2,0.04]
[1756076972460,6.05632202,4785.3,4785.2,0.3266]
[1756076973564,6.05632202,4785.3,4785.2,0.04]
[1756076974076,2.47132202,4785.3,4785.2,0.04]
[1756076974250,6.05532202,4785.3,4785.2,0.3266]
[1756076974673,6.05532202,4785.3,4785.2,0.04]
[1756076974846,2.47132202,4785.3,4785.2,0.04]
[1756076975046,6.05532202,4785.3,4785.2,0.3266]
[1756076975676,6.38242032,4785.3,4785.2,0.3266]
[1756076975883,0.88242032,4785.3,4785.2,0.3266]
[1756076976056,0.1048,4785.3,4785.2,0.7992]
[1756076976260,3.6888,4785.3,4785.2,0.7992]
[1756076977147,1.606,4785.7,4785.2,0.7992]
[1756076977349,0.1048,4785.3,4785.2,0.3266]
[1756076977789,3.6888,4785.3,4785.2,2.41637681]
[1756076977958,3.6888,4785.3,4785.2,2.88897681]
[1756076978159,3.6888,4785.3,4785.2,0.7992]
[1756076978876,0.1048,4785.3,4785.2,0.7992]
[1756076979070,3.6888,4785.3,4785.2,0.7992]
[1756076979269,3.6888,4785.3,4785.2,2.88897681]
[1756076979472,0.1048,4785.3,4785.2,3.39126401]
[1756076982953,0.44760072,4786.3,4785.2,3.39126401]
[1756076983154,4.03160072,4786.6,4785.3,0.4747]
[1756076983360,0.1048,4786.0,4785.9,2.08947115]
[1756076983561,4.03083908,4786.9,4785.9,1.30024712]
[1756076983761,0.1048,4786.3,4786.0,0.4747]
[1756076983973,0.1048,4786.3,4786.2,2.40594018]
[1756076984173,0.001,4786.6,4786.5,2.08920923]
[1756076984395,0.001,4786.6,4786.5,2.40580923]
[1756076984598,0.001,4786.6,4786.5,4.91185286]
[1756076985201,0.001,4786.6,4786.5,7.91185286]
[1756076985401,0.001,4786.6,4786.5,8.01665286]
[1756076985790,0.1048,4787.5,4787.4,2.08881647]
[1756076985995,0.1048,4787.5,4787.4,2.40541647]
[1756076986308,0.001,4788.1,4788.0,5.08855472]
[1756076986606,0.001,4788.1,4788.0,5.50995472]
[1756076986796,0.001,4788.1,4788.0,5.98465472]
[1756076994115,0.001,4788.6,4788.2,0.66]
[1756076994410,0.001,4788.6,4788.5,2.40493663]
[1756076994585,0.001,4788.6,4788.5,6.76869379]
[1756076994786,0.104,4789.6,4789.0,2.0881186]
[1756076995014,0.04,4790.4,4789.3,2.0879878]
[1756076995199,0.04,4790.4,4789.3,6.0645878]
[1756076995399,0.04,4790.4,4789.3,6.6432878]
[1756076995604,0.04,4790.4,4789.3,8.67463143]
[1756076997506,0.04,4790.4,4789.3,12.25563143]
[1756076998027,0.04,4790.4,4789.3,7.88333143]
[1756076998223,0.4686,4790.2,4789.3,10.80333143]
[1756076998426,0.4686,4790.2,4789.3,8.7719878]
[1756076998722,0.104,4790.0,4789.3,9.0885878]
[1756076999296,0.104,4790.0,4789.3,8.7719878]
[1756076999487,0.5726,4790.0,4789.3,8.7719878]
[1756076999692,0.3347,4789.4,4789.3,8.7719878]
[1756076999891,0.3347,4789.4,4789.3,10.80333143]
[1756077000823,0.04,4789.4,4789.3,11.11993143]
[1756077001533,0.04,4789.4,4789.3,12.25463143]
[1756077001734,0.041,4790.4,4790.3,2.08755192]
[1756077001889,0.041,4790.4,4790.3,8.98415192]
[1756077002089,0.041,4790.4,4790.3,11.01549555]
[1756077002529,0.041,4790.4,4790.3,10.69889555]
[1756077003023,0.041,4790.4,4790.3,11.49019555]
[1756077003244,0.041,4790.4,4790.3,12.15019555]
[1756077003420,0.041,4790.4,4790.3,10.69889555]
[1756077005542,0.8043,4790.4,4790.3,3.0]
[1756077005730,1.24947369,4790.4,4790.3,3.0]
[1756077005931,1.24947369,4790.4,4789.8,3.58]
[1756077006140,0.104,4790.2,4789.6,3.579]
[1756077006334,0.44517369,4790.1,4789.7,3.0]
[1756077006534,0.44517369,4790.1,4788.7,12.97671934]
[1756077006535,0.2947,4789.8,4788.7,12.97671934]
[1756077006720,0.2947,4789.8,4789.0,0.1048]
[1756077006721,1.01777369,4789.7,4789.0,0.1048]
[1756077007040,0.44517369,4789.6,4789.0,0.1048]
[1756077007241,0.44517369,4789.5,4789.1,3.579]
[1756077007540,0.91377369,4789.4,4789.2,3.0]
[1756077007745,0.73987369,4789.3,4789.2,3.0]
[1756077007913,1.20847369,4789.3,4789.2,3.0]
[1756077008111,1.31247369,4789.3,4789.2,3.0]
[1756077008531,1.31247369,4789.3,4789.1,3.579]
[1756077008846,1.47254542,4789.2,4787.5,12.97671934]
[1756077009082,0.2947,4788.5,4788.4,3.579]
[1756077009210,0.73987369,4788.5,4788.4,6.579]
[1756077009412,0.44517369,4788.5,4788.4,9.56348025]
[1756077009654,0.44517369,4788.5,4788.4,5.50978025]
[1756077009953,0.44517369,4788.5,4788.4,11.12012388]
[1756077010524,0.44517369,4788.5,4788.4,8.71514363]
[1756077010716,0.73987369,4788.5,4788.4,8.77218025]
[1756077010917,0.73987369,4788.5,4788.4,6.6838]
[1756077011155,0.73987369,4788.5,4788.4,3.0]
[1756077011336,1.76627701,4788.5,4788.4,3.0]
[1756077011519,1.76627701,4788.5,4787.7,0.1048]
[1756077011520,1.31327369,4788.5,4787.7,0.1048]
[1756077011852,1.31327369,4788.5,4787.1,0.04]
[1756077011853,1.49125826,4788.2,4787.1,0.04]
[1756077012051,0.2947,4787.2,4787.1,0.04]
[1756077012216,0.73987369,4787.2,4787.1,0.04]
[1756077012412,2.32862433,4787.2,4787.1,0.04]
[1756077012627,1.56532433,4787.2,4787.1,0.04]
[1756077012827,0.44517369,4787.2,4787.1,0.04]
[1756077013459,0.44517369,4787.2,4787.1,5.94235084]
[1756077013635,0.44517369,4787.2,4787.1,8.00685084]
[1756077014028,0.44517369,4787.2,4787.1,8.66685084]
[1756077014451,0.56034647,4788.0,4787.9,2.08859834]
[1756077014615,1.00888943,4788.0,4787.9,8.67259834]
[1756077014816,0.44854296,4788.0,4787.9,9.61392164]
[1756077015041,1.00921634,4788.0,4787.9,9.61392164]
[1756077015239,0.44854296,4788.0,4787.9,9.91442164]
[1756077016422,1.00967195,4788.0,4787.9,9.91442164]
[1756077016839,0.44854296,4788.0,4787.9,11.03392164]
[1756077017133,0.56112899,4788.6,4788.1,0.66]
[1756077017329,0.56112899,4788.9,4788.7,2.08824942]
[1756077017532,0.56112899,4789.2,4788.9,5.0881622]
[1756077017733,0.56112899,4789.3,4789.2,2.0880314]
[1756077017959,1.12085758,4790.0,4789.5,2.08790061]
[1756077017960,0.56112899,4789.7,4789.5,2.08790061]
[1756077018166,0.56112899,4789.7,4789.6,8.97235702]
[1756077018366,0.74718193,4790.1,4789.7,3.0]
[1756077018551,0.3005,4789.8,4789.1,3.586]
[1756077018859,0.001,4789.4,4789.2,3.0]
[1756077019051,0.7587,4789.3,4789.2,3.0]
[1756077019574,0.7587,4789.3,4789.1,3.586]
[1756077019771,1.57905758,4789.2,4788.3,1.606]
[1756077020076,0.3005,4788.4,4787.7,2.08868288]
[1756077020272,0.74832989,4788.1,4787.7,2.08868448]
[1756077020427,0.86168636,4787.8,4787.7,2.08868448]
[1756077020630,0.86168636,4787.8,4787.6,3.0]
[1756077020934,0.86168636,4787.8,4787.7,2.08868559]
[1756077021458,0.3005,4787.8,4787.7,2.08868559]
[1756077021663,0.74832989,4788.4,4787.7,0.45164494]
[1756077021848,0.1048,4788.3,4787.8,6.586]
[1756077022381,0.4582,4788.2,4787.8,8.67463137]
[1756077022561,0.4582,4788.1,4787.8,6.586]
[1756077022877,0.74832989,4788.4,4787.4,0.004]
[1756077022878,0.3005,4787.9,4787.4,0.004]
[1756077023174,0.1048,4787.5,4787.4,0.004]
[1756077023382,0.4053,4787.5,4787.4,0.004]
[1756077023547,0.8635,4787.5,4787.4,0.004]
[1756077023748,1.02468299,4787.5,4787.4,0.004]
[1756077025256,2.14569987,4787.5,4787.4,0.004]
[1756077025466,1.02468299,4787.5,4787.4,0.004]
[1756077025861,2.14569987,4787.5,4787.4,0.004]
[1756077026040,1.02468299,4787.5,4787.4,0.004]
[1756077026239,0.8635,4787.5,4787.4,0.004]
[1756077026441,1.15195001,4787.5,4787.4,0.004]
[1756077026671,0.8635,4787.5,4787.4,0.004]
[1756077027176,0.4053,4787.5,4787.4,0.004]
[1756077027740,0.4053,4787.5,4787.4,2.09281647]
[1756077027741,0.1048,4787.5,4787.4,2.09281647]
[1756077028072,0.1048,4787.5,4787.4,3.06609812]
[1756077028663,0.1048,4788.0,4787.9,2.08856466]
[1756077029369,0.55259801,4788.0,4787.9,2.08856466]
[1756077029574,0.1048,4788.0,4787.9,2.08856466]
[1756077030346,0.1048,4788.0,4787.4,4.26778165]
[1756077030571,0.1048,4788.0,4787.9,2.08859834]
[1756077032264,0.1048,4788.0,4787.7,2.08866779]
[1756077032983,0.1048,4788.0,4787.6,2.08872316]
[1756077033349,0.1048,4788.0,4787.7,2.08867498]
[1756077033987,0.1048,4788.0,4787.9,2.38909834]
[1756077034144,0.1048,4788.0,4787.9,2.67213399]
[1756077035351,0.1058,4788.0,4787.9,2.67213399]
[1756077036180,0.1058,4788.0,4787.9,0.28303565]
[1756077036343,0.1058,4788.0,4787.6,2.09269302]
[1756077036539,0.1058,4788.0,4787.9,2.08859834]
[1756077037751,0.1058,4788.0,4787.6,0.004]
[1756077037953,0.4582,4787.9,4787.6,0.004]
[1756077038291,0.4053,4787.7,4787.6,0.004]
[1756077038695,0.8635,4787.7,4787.6,0.004]
[1756077039058,3.26924344,4787.7,4787.6,0.004]
[1756077039295,3.71879052,4787.7,4787.6,0.004]
[1756077039683,6.97273172,4787.7,4787.6,0.004]
[1756077040077,7.63273172,4787.7,4787.6,0.004]
[1756077040480,5.22698828,4787.7,4787.6,0.004]
[1756077040692,0.1048,4787.7,4787.6,2.09272921]
[1756077040913,0.1048,4787.7,4787.6,2.39322921]
[1756077041333,0.4053,4787.7,4787.6,0.004]
[1756077041506,0.8635,4787.7,4787.6,0.004]
[1756077042727,1.607,4788.0,4787.6,0.004]
[1756077042935,0.3959,4787.7,4787.6,0.004]
[1756077043509,0.1048,4787.7,4787.6,0.004]
[1756077043839,0.1048,4787.7,4787.6,2.38179241]
[1756077044152,0.1048,4787.7,4787.6,2.8743214]
[1756077045698,0.001,4788.0,4787.9,2.08859834]
[1756077045896,0.1058,4788.0,4787.9,2.37769834]
[1756077046602,0.1058,4788.0,4787.9,2.82839834]
[1756077047005,0.001,4788.0,4787.9,2.82839834]
[1756077047350,0.001,4788.0,4787.9,6.77455771]
[1756077048212,0.001,4788.0,4787.9,16.93919703]
[1756077048416,0.001,4788.0,4787.9,17.59919703]
[1756077049551,1e-08,4788.0,4787.9,17.59919703]
[1756077049911,0.001,4789.0,4788.9,2.0881622]
[1756077050241,0.001,4789.0,4788.9,7.19254235]
[1756077050439,0.001,4789.0,4788.9,7.64324235]
[1756077050652,0.001,4789.0,4788.9,7.74804235]
[1756077051414,0.001,4789.9,4789.0,0.66]
[1756077051718,0.001,4789.9,4789.8,16.20150916]
[1756077051915,0.4455,4791.7,4789.9,3.66]
[1756077052123,0.001,4791.8,4790.3,6.03665192]
[1756077052327,0.001,4791.8,4790.3,9.62665192]
[1756077052530,0.001,4791.8,4790.3,10.07735192]
[1756077052729,0.4455,4791.7,4790.3,10.07735192]
[1756077053112,0.001,4791.8,4790.3,6.03665192]
[1756077053346,0.001,4791.8,4790.3,10.22877932]
[1756077054054,0.001,4791.8,4790.3,9.77807932]
[1756077054299,0.4455,4791.0,4790.3,9.48897932]
[1756077055977,0.3321,4790.4,4790.3,9.48897932]
[1756077056319,0.041,4790.4,4790.3,9.77807932]
[1756077057486,0.041,4790.4,4790.3,9.48897932]
[1756077058106,0.001,4791.8,4791.2,2.08715979]
[1756077058268,0.001,4791.8,4791.2,8.96225979]
[1756077058478,0.001,4791.8,4791.2,8.67315979]
[1756077061385,0.105,4791.8,4791.2,8.96225979]
[1756077061619,0.105,4791.8,4791.2,9.62225979]
[1756077061788,0.001,4791.8,4791.2,10.0150086]
[1756077062686,0.7376,4791.3,4791.2,5.08715979]
[1756077062887,0.2921,4791.3,4791.2,8.67615979]
[1756077063106,0.001,4791.3,4791.2,8.67615979]
[1756077063311,0.2921,4791.3,4791.2,8.67615979]
[1756077063517,0.7376,4791.3,4790.4,1.15766125]
[1756077063791,0.001,4791.3,4790.5,3.589]
[1756077063994,0.001,4791.3,4791.2,2.37625979]
[1756077064192,0.001,4791.3,4791.2,9.06925979]
[1756077065923,0.001,4791.3,4791.2,10.17995979]
[1756077066123,0.001,4791.3,4791.2,11.56718039]
[1756077067138,0.001,4791.3,4791.2,11.11648039]
[1756077067326,0.001,4791.3,4791.2,11.56718039]
[1756077068293,0.001,4791.8,4791.6,0.66]
[1756077068503,0.001,4791.8,4791.7,19.78568132]
[1756077068741,0.001,4791.8,4791.7,19.88968132]
[1756077068924,0.001,4791.8,4791.7,20.34038132]
[1756077071738,0.001,4791.8,4791.7,18.93758132]
[1756077071943,0.2921,4791.8,4791.7,18.93758132]
[1756077072149,0.2921,4791.8,4791.7,19.1775117]
[1756077072344,0.001,4791.8,4791.7,20.5773117]
[1756077073412,0.001,4791.8,4791.7,22.94620667]
[1756077074244,0.001,4791.8,4791.7,23.38330667]
[1756077075140,0.001,4792.3,4791.7,23.38330667]
[1756077075141,0.001,4792.3,4792.2,2.08672426]
[1756077075354,0.001,4792.3,4792.2,8.39197576]
[1756077078329,0.001,4792.3,4792.2,9.05197576]
[1756077079388,0.001,4792.3,4792.2,9.48907576]
[1756077080739,0.001,4792.3,4792.2,9.05097576]
[1756077082683,0.001,4792.8,4792.7,2.08650656]
[1756077082972,0.001,4792.8,4792.7,22.36604867]
[1756077083374,0.041,4795.4,4794.0,0.66]
[1756077083574,0.04,4796.4,4795.3,3.04427526]
[1756077083885,0.04,4796.4,4796.3,2.08494047]
[1756077084090,0.04,4796.4,4796.3,21.69617476]
[1756077084382,0.04,4796.4,4796.3,21.80017476]
[1756077084560,0.04,4796.4,4796.3,23.70307476]
[1756077084958,0.04,4796.4,4796.3,24.38734153]
[1756077085159,0.04,4796.4,4796.3,24.08844153]
[1756077085361,0.04,4796.4,4796.3,11.10420724]
[1756077085663,0.04,4796.4,4796.3,10.41994047]
[1756077086492,0.3483,4796.4,4796.3,6.79294047]
[1756077086653,0.8127,4796.4,4796.3,10.41694047]
[1756077087150,0.04,4796.4,4796.3,10.41694047]
[1756077087360,0.04,4796.4,4796.3,12.4482841]
[1756077087572,0.3483,4796.4,4796.3,10.41694047]
[1756077087770,0.8127,4796.4,4796.3,10.41694047]
[1756077088083,0.8127,4796.4,4796.3,3.0]
[1756077088882,0.8127,4796.4,4796.2,3.624]
[1756077089090,0.3483,4796.4,4796.2,3.624]
[1756077089387,0.4644,4796.3,4796.2,3.0]
[1756077089554,0.7727,4796.3,4796.2,3.0]
[1756077091396,0.7727,4796.3,4796.1,3.627]
[1756077091603,0.7727,4796.3,4795.6,1.604]
[1756077091604,0.4644,4796.2,4793.5,1.604]
[1756077091803,0.4644,4796.2,4793.6,3.623]
[1756077091962,0.4644,4796.2,4794.4,2.08576008]
[1756077092165,0.3083,4794.5,4794.3,2.08577689]
[1756077092362,0.3083,4794.5,4794.4,6.628]
[1756077092577,0.3083,4794.5,4794.4,3.628]
[1756077092780,0.3083,4794.5,4794.4,6.628]
[1756077092967,0.3083,4794.5,4794.4,8.71376672]
[1756077093168,0.4644,4795.2,4794.8,2.08556562]
[1756077093388,0.4644,4795.2,4794.9,3.627]
[1756077093595,1.604,4796.3,4794.9,3.627]
[1756077093807,0.3083,4795.0,4794.9,3.626]
[1756077094076,0.7727,4795.0,4794.7,3.626]
[1756077094384,0.4644,4794.9,4794.8,3.626]
[1756077094584,0.3083,4794.9,4794.8,5.71159272]
[1756077094799,0.4644,4795.4,4794.8,3.626]
[1756077095103,0.4644,4795.4,4794.9,2.08554824]
[1756077095307,0.4644,4795.4,4795.0,3.625]
[1756077095505,0.3083,4795.1,4795.0,3.625]
[1756077095677,0.4644,4796.2,4795.1,3.0]
[1756077096079,0.4644,4796.2,4795.5,2.08528519]
[1756077096304,0.4644,4796.2,4795.6,3.624]
[1756077096510,0.4644,4796.2,4795.0,0.3625]
[1756077096511,0.4644,4796.2,4795.7,3.624]
[1756077096675,0.3083,4795.8,4795.7,3.624]
[1756077097667,0.7727,4795.8,4795.7,3.624]
[1756077098103,0.8767,4795.8,4795.7,3.624]
[1756077098673,0.104,4795.8,4795.7,5.70920132]
[1756077098882,0.4644,4796.2,4795.7,5.70920132]
[1756077098883,0.104,4796.2,4795.7,4.40344714]
[1756077099087,0.104,4796.2,4795.7,5.70915849]
[1756077099410,0.104,4796.2,4795.9,2.08507558]
[1756077099706,0.104,4796.2,4796.0,5.70806336]
[1756077099899,0.104,4796.2,4796.0,3.623]
[1756077100108,0.104,4796.2,4796.1,2.08502741]
[1756077100284,0.04,4796.4,4796.1,3.57080274]
[1756077100607,0.3083,4796.2,4796.1,3.0]
[1756077100981,0.7727,4796.2,4795.5,0.104]
[1756077101185,0.4644,4796.1,4795.7,3.0]
[1756077101383,0.3083,4795.8,4795.7,3.0]
[1756077101587,0.7727,4795.8,4795.6,3.621]
[1756077101884,0.4644,4795.7,4794.4,1.604]
[1756077102087,0.104,4795.4,4794.6,3.0]
[1756077102337,0.104,4795.1,4794.6,3.0]
[1756077102491,0.104,4795.1,4794.6,5.08566251]
[1756077102691,0.5663,4795.1,4794.6,5.08567661]
[1756077102904,0.5663,4795.1,4795.0,0.001]
[1756077103124,0.3978,4795.1,4795.0,0.001]
[1756077103691,1.06018,4795.1,4795.0,0.001]
[1756077105534,0.8601,4795.1,4795.0,0.001]
[1756077109995,0.104,4795.1,4795.0,0.001]
[1756077113138,0.8601,4795.1,4795.0,0.001]
[1756077114042,2.08698008,4796.3,4795.0,0.001]
[1756077114043,0.74747829,4797.1,4795.1,0.66]
[1756077114244,0.4623,4796.7,4795.4,3.0]
[1756077114445,0.4623,4796.7,4795.1,3.0]
[1756077114646,1.644,4797.4,4795.5,12.97559339]
[1756077114812,0.4633,4797.3,4795.6,3.0]
[1756077115140,0.4633,4797.3,4796.6,2.08479699]
[1756077115341,0.4633,4797.3,4795.9,2.08511436]
[1756077115941,0.001,4797.3,4795.9,2.08511436]
[1756077116153,0.001,4797.3,4795.6,3.0]
[1756077116154,0.4643,4796.8,4795.6,3.0]
[1756077116454,0.4643,4796.8,4795.7,2.08520132]
[1756077116747,0.4643,4796.8,4796.3,2.08489822]
[1756077116748,0.002,4796.8,4796.3,2.08489822]
[1756077117256,0.002,4796.8,4796.4,2.0848938]
[1756077117566,0.002,4796.8,4796.2,12.97559339]
[1756077117766,0.002,4796.8,4795.9,12.97559339]
[1756077117767,0.2938,4796.3,4795.9,12.97559339]
[1756077117922,0.4623,4796.2,4795.9,12.97559339]
[1756077118121,0.4623,4796.2,4795.9,15.06069608]
[1756077118322,0.4623,4796.2,4795.9,12.97559339]
[1756077118862,0.2938,4796.0,4795.9,12.97559339]
[1756077119025,0.7561,4796.0,4795.9,12.97559339]
[1756077120861,0.002,4796.8,4795.9,12.97559339]
[1756077121065,0.74747829,4798.7,4796.7,13.26289339]
[1756077121384,0.04,4800.4,4796.7,13.26289339]
[1756077121385,0.4623,4799.8,4797.7,3.0]
[1756077121584,0.4623,4799.3,4797.8,3.701]
[1756077121866,0.4623,4799.3,4797.3,3.701]
[1756077122072,0.66,4799.2,4797.5,2.08440414]
[1756077122311,0.89863,4799.1,4797.0,3.0]
[1756077122486,0.43633,4799.1,4797.5,2.08439569]
[1756077122768,0.4623,4799.0,4797.0,3.0]
[1756077122925,0.4623,4799.0,4797.6,2.08437136]
[1756077123121,0.4623,4799.0,4797.0,3.0]
[1756077123446,0.4623,4799.0,4796.7,0.2892]
[1756077123447,0.66,4798.8,4797.1,12.20287845]
[1756077123636,0.66,4798.8,4797.2,2.08453814]
[1756077123840,2.0653,4798.7,4797.3,2.08450483]
[1756077124162,2.0653,4798.7,4797.2,2.0845338]
[1756077124163,0.104,4797.4,4797.2,2.0845338]
[1756077125039,0.32618216,4798.9,4798.7,2.08388721]
[1756077125263,0.04,4800.4,4799.1,2.08371397]
[1756077125475,0.04,4800.4,4799.3,12.48923771]
[1756077125825,0.04,4800.4,4799.3,15.48923771]
[1756077126168,0.104,4799.6,4799.3,15.48923771]
[1756077126962,0.154,4800.0,4799.4,3.0]
[1756077127163,0.154,4800.0,4799.9,2.08337673]
[1756077127660,0.154,4800.0,4799.9,2.37067673]
[1756077127859,0.154,4800.0,4799.4,3.0]
[1756077128062,0.4623,4799.9,4799.5,2.08354379]
[1756077128269,1.929041,4801.5,4799.4,3.0]
[1756077128270,0.74747829,4803.1,4799.9,2.08337673]
[1756077128472,1.1577783,4803.4,4802.3,2.08233554]
[1756077128473,0.04,4803.4,4802.3,2.08233554]
[1756077128631,0.5023,4803.4,4802.3,2.08233554]
[1756077128827,0.144,4802.4,4802.3,5.08233554]
[1756077129042,0.04,4802.4,4802.3,5.36963554]
[1756077129243,0.104,4803.0,4802.9,2.08207541]
[1756077129534,0.04,4803.4,4803.0,3.0]
[1756077129869,0.04,4803.4,4803.2,3.0]
[1756077130231,0.04,4803.4,4802.9,10.22230052]
[1756077130430,0.04,4803.4,4802.9,10.11830052]
[1756077130631,0.3978,4803.0,4802.9,10.11830052]
[1756077130872,0.104,4803.0,4802.9,10.11830052]
[1756077131167,0.04,4803.4,4802.9,10.40560052]
[1756077131367,0.04,4803.4,4802.9,10.11830052]
[1756077131551,0.04,4803.4,4802.9,13.94530052]
[1756077131753,0.4623,4803.3,4802.3,1.603]
[1756077131967,0.04,4803.4,4802.9,10.11830052]
[1756077132134,0.04,4803.4,4803.0,5.90802337]
[1756077132331,0.04,4803.4,4803.3,2.36920202]
[1756077132650,0.04,4803.4,4802.9,10.11830052]
[1756077132850,0.04,4803.4,4803.0,3.828]
[1756077133051,0.04,4803.4,4803.0,2.08201958]
[1756077133242,0.04,4803.4,4803.1,3.824]
[1756077133626,0.04,4803.4,4802.9,10.11830052]
[1756077133827,0.04,4803.4,4803.0,3.823]
[1756077134063,0.04,4803.4,4803.2,3.0]
[1756077134433,0.04,4803.4,4803.3,6.828]
[1756077135941,0.04,4803.4,4803.3,7.1324]
[1756077136686,0.042,4803.4,4803.3,7.1324]
[1756077137787,0.042,4803.4,4803.3,6.817]
[1756077139078,0.042,4803.4,4803.3,9.02313222]
[1756077139368,0.042,4803.4,4803.3,17.23970052]
[1756077139580,0.04,4804.4,4803.4,0.66]
[1756077139750,0.4313,4806.2,4804.4,3.0]
[1756077139939,0.2495,4806.6,4805.3,15.50373604]
[1756077140138,0.2495,4806.6,4805.3,21.07722016]
[1756077140773,0.2495,4806.6,4805.3,15.50373604]
[1756077140976,0.2495,4806.6,4805.3,19.31773604]
[1756077141282,0.2495,4806.6,4805.3,19.31673604]
[1756077141769,0.104,4805.9,4805.3,19.01133604]
[1756077142070,0.4313,4805.8,4805.3,3.0]
[1756077142374,0.144,4805.4,4805.3,3.0]
[1756077142695,0.444,4805.4,4805.3,3.0]
[1756077142841,0.8753,4805.4,4805.0,3.81]
[1756077143182,0.4313,4805.3,4804.9,6.81]
[1756077143471,0.4313,4805.2,4804.9,3.0]
[1756077143677,0.4313,4805.1,4804.9,3.0]
[1756077143877,0.104,4805.0,4804.9,3.0]
[1756077144079,0.8353,4805.0,4804.9,3.0]
[1756077145153,0.8353,4805.0,4803.3,0.4313]
[1756077145479,0.8353,4805.0,4804.1,3.0]
[1756077145686,0.7313,4805.0,4804.3,3.0]
[1756077146047,0.104,4804.4,4804.3,3.0]
[1756077146243,0.104,4804.4,4804.3,6.805]
[1756077146673,0.104,4804.4,4804.3,3.0]
[1756077146871,0.04,4805.4,4804.3,10.21608832]
[1756077147148,0.04,4805.4,4805.1,2.08110446]
[1756077147373,0.04,4805.4,4805.2,3.803]
[1756077147685,0.04,4805.4,4805.3,3.804]
[1756077147880,0.04,4805.4,4805.3,9.18843552]
[1756077148088,0.04,4805.4,4805.3,10.71082957]
[1756077148982,0.04,4805.4,4805.3,10.70882957]
[1756077149880,0.04,4805.4,4805.3,6.90782957]
[1756077150046,0.04,4805.4,4805.3,6.60342957]
[1756077150251,0.04,4805.4,4805.3,6.797]
[1756077150460,0.04,4805.4,4805.3,9.18243552]
[1756077150980,0.04,4805.4,4805.3,8.87703552]
[1756077151344,0.04,4805.4,4805.3,9.18143552]
[1756077151584,0.04,4805.4,4805.3,7.41677915]
[1756077151877,0.04,4805.4,4805.3,10.90937915]
[1756077152274,0.04,4805.4,4805.3,11.21377915]
[1756077152445,0.04,4805.4,4805.3,10.90837915]
[1756077152649,0.04,4805.4,4805.3,6.796]
[1756077153080,0.04,4805.4,4805.3,8.87603552]
[1756077153483,0.042,4805.4,4805.3,21.78826439]
[1756077153787,0.042,4805.4,4805.3,19.70722887]
[1756077153963,0.042,4805.4,4805.3,21.78826439]
[1756077154160,0.042,4805.4,4805.3,19.70722887]
[1756077154484,0.042,4805.4,4805.3,19.70822887]
[1756077154680,0.042,4805.4,4805.3,16.70522887]
[1756077156687,0.042,4805.4,4805.3,16.70422887]
[1756077156899,0.342,4805.4,4804.7,1.601]
[1756077157190,0.042,4805.4,4805.2,12.91222887]
[1756077157482,0.042,4805.4,4805.3,3.791]